[Event "Titled Tuesday Blitz March 29 Early 2022"]
[White "Omariev, Maksim"]
[Black "Kosteniuk, Alexandra"]
[WhiteFideId "4193423"]
[BlackFideId "4128125"]
[WhiteElo "2518"]
[BlackElo "2469"]
[Result "1-0"]
[Round "06"]
[TimeControl "180+1"]
[Date "2022.03.30"]
[WhiteClock "0:00:04"]
[BlackClock "0:00:01"]

1. g4 {[%clk 0:03:00]}  d5 {[%clk 0:02:59]} 2. Bg2 {[%clk 0:03:01]}  Bxg4 {[%clk 0:02:53]} 3. c4 {[%clk 0:03:00]}  dxc4 {[%clk 0:02:53]} 4. Bxb7 {[%clk 0:02:59]}  Nd7 {[%clk 0:02:53]} 5. Bxa8 {[%clk 0:02:59]}  Qxa8 {[%clk 0:02:52]} 6. f3 {[%clk 0:03:00]}  Bh5 {[%clk 0:02:50]} 7. Na3 {[%clk 0:02:59]}  e5 {[%clk 0:02:46]} 8. Nxc4 {[%clk 0:02:54]}  Be7 {[%clk 0:02:47]} 9. Qa4 {[%clk 0:02:51]}  e4 {[%clk 0:02:29]} 10. Ne5 {[%clk 0:02:41]}  Nf6 {[%clk 0:02:28]} 11. Nxd7 {[%clk 0:02:38]}  Nxd7 {[%clk 0:02:26]} 12. Qxe4 {[%clk 0:02:38]}  Qd8 {[%clk 0:02:25]} 13. d4 {[%clk 0:01:54]}  O-O {[%clk 0:02:23]} 14. Bf4 {[%clk 0:01:47]}  Bg6 {[%clk 0:02:16]} 15. Qb7 {[%clk 0:01:34]}  c5 {[%clk 0:01:59]} 16. Qc7 {[%clk 0:01:17]}  Qe8 {[%clk 0:01:41]} 17. d5 {[%clk 0:01:00]}  Nb6 {[%clk 0:01:26]} 18. Rd1 {[%clk 0:00:29]}  Bf6 {[%clk 0:00:38]} 19. b3 {[%clk 0:00:20]}  Bd4 {[%clk 0:00:34]} 20. Qc6 {[%clk 0:00:10]}  Qd8 {[%clk 0:00:30]} 21. e4 {[%clk 0:00:05]}  Re8 {[%clk 0:00:28]} 22. Ne2 {[%clk 0:00:04]}  Nd7 {[%clk 0:00:13]} 23. Nxd4 {[%clk 0:00:03]}  cxd4 {[%clk 0:00:13]} 24. O-O {[%clk 0:00:03]}  h6 {[%clk 0:00:13]} 25. Rxd4 {[%clk 0:00:03]}  Nf6 {[%clk 0:00:13]} 26. Bg3 {[%clk 0:00:02]}  Nh5 {[%clk 0:00:13]} 27. d6 {[%clk 0:00:02]}  Nxg3 {[%clk 0:00:13]} 28. hxg3 {[%clk 0:00:03]}  Rf8 {[%clk 0:00:14]} 29. d7 {[%clk 0:00:03]}  Qg5 {[%clk 0:00:14]} 30. Kg2 {[%clk 0:00:02]}  Qe3 {[%clk 0:00:14]} 31. Rdd1 {[%clk 0:00:02]}  Qe2+ {[%clk 0:00:14]} 32. Kg1 {[%clk 0:00:02]}  Qe3+ {[%clk 0:00:14]} 33. Kg2 {[%clk 0:00:03]}  Qe2+ {[%clk 0:00:15]} 34. Kh3 {[%clk 0:00:03]}  Qxa2 {[%clk 0:00:03]} 35. d8=Q {[%clk 0:00:03]}  Rxd8 {[%clk 0:00:02]} 36. Rxd8+ {[%clk 0:00:04]}  Kh7 {[%clk 0:00:03]} 37. Qd5 {[%clk 0:00:04]}  Qa6 {[%clk 0:00:02]} 38. Qd3 {[%clk 0:00:04]}  Qe6+ {[%clk 0:00:02]} 39. Kg2 {[%clk 0:00:04]}  h5 {[%clk 0:00:03]} 40. Rh1 {[%clk 0:00:04]}  Qb6 {[%clk 0:00:03]} 41. g4 {[%clk 0:00:04]}  Qa5 {[%clk 0:00:03]} 42. gxh5 {[%clk 0:00:04]}  Qg5+ {[%clk 0:00:03]} 43. Kf2 {[%clk 0:00:05]}  Bxh5 {[%clk 0:00:04]} 44. Rd5 {[%clk 0:00:04]}  f5 {[%clk 0:00:03]} 45. Rxf5 {[%clk 0:00:04]}  Qe7 {[%clk 0:00:02]} 46. Rfxh5+ {[%clk 0:00:04]}  Kg6 {[%clk 0:00:02]} 47. Qd5 {[%clk 0:00:05]}  Qf6 {[%clk 0:00:01]} 48. Qf5+ {[%clk 0:00:04]} 1-0


[Site "https://www.chess.com"]

[Event "Titled Tuesday Blitz March 29 Early 2022"]
[White "Pakleza, Zbigniew"]
[Black "Melikhov, Evgeny V."]
[WhiteFideId "1119290"]
[BlackFideId "4122046"]
[WhiteElo "2467"]
[BlackElo "1945"]
[Result "1-0"]
[Round "06"]
[TimeControl "180+1"]
[Date "2022.03.30"]
[WhiteClock "0:00:10"]
[BlackClock "0:00:10"]

1. d4 {[%clk 0:03:00]}  Nf6 {[%clk 0:02:58]} 2. Nf3 {[%clk 0:03:00]}  d5 {[%clk 0:02:58]} 3. Bf4 {[%clk 0:02:57]}  c5 {[%clk 0:02:58]} 4. c3 {[%clk 0:02:57]}  Nc6 {[%clk 0:02:57]} 5. e3 {[%clk 0:02:58]}  Qb6 {[%clk 0:02:55]} 6. Qb3 {[%clk 0:02:58]}  c4 {[%clk 0:02:54]} 7. Qc2 {[%clk 0:02:58]}  Bf5 {[%clk 0:02:53]} 8. Qc1 {[%clk 0:02:59]}  e6 {[%clk 0:02:52]} 9. h3 {[%clk 0:02:58]}  h6 {[%clk 0:02:51]} 10. Nbd2 {[%clk 0:02:57]}  Qd8 {[%clk 0:02:48]} 11. Be2 {[%clk 0:02:57]}  Bd6 {[%clk 0:02:48]} 12. Bxd6 {[%clk 0:02:58]}  Qxd6 {[%clk 0:02:48]} 13. b3 {[%clk 0:02:59]}  cxb3 {[%clk 0:02:43]} 14. axb3 {[%clk 0:03:00]}  O-O {[%clk 0:02:41]} 15. O-O {[%clk 0:02:58]}  a5 {[%clk 0:02:18]} 16. Qb2 {[%clk 0:02:44]}  Ne4 {[%clk 0:02:11]} 17. Bb5 {[%clk 0:02:19]}  Nxd2 {[%clk 0:02:05]} 18. Qxd2 {[%clk 0:02:20]}  Na7 {[%clk 0:01:54]} 19. Be2 {[%clk 0:02:00]}  Nc6 {[%clk 0:01:51]} 20. Rfc1 {[%clk 0:01:56]}  b6 {[%clk 0:01:34]} 21. c4 {[%clk 0:01:47]}  Nb4 {[%clk 0:01:33]} 22. c5 {[%clk 0:01:46]}  bxc5 {[%clk 0:01:31]} 23. Rxc5 {[%clk 0:01:47]}  Rfc8 {[%clk 0:01:11]} 24. Raxa5 {[%clk 0:01:41]}  Rxa5 {[%clk 0:01:01]} 25. Rxc8+ {[%clk 0:01:37]}  Kh7 {[%clk 0:01:01]} 26. Rc1 {[%clk 0:00:34]}  Ra2 {[%clk 0:00:59]} 27. Qd1 {[%clk 0:00:28]}  Bc2 {[%clk 0:00:31]} 28. Rxc2 {[%clk 0:00:23]}  Rxc2 {[%clk 0:00:29]} 29. Bd3+ {[%clk 0:00:23]}  f5 {[%clk 0:00:15]} 30. Bxc2 {[%clk 0:00:23]}  Qc7 {[%clk 0:00:14]} 31. Bd3 {[%clk 0:00:22]}  Qc3 {[%clk 0:00:14]} 32. Ne5 {[%clk 0:00:21]}  Na2 {[%clk 0:00:12]} 33. Qh5 {[%clk 0:00:14]}  Nc1 {[%clk 0:00:10]} 34. Qg6+ {[%clk 0:00:13]}  Kg8 {[%clk 0:00:10]} 35. Qe8+ {[%clk 0:00:12]}  Kh7 {[%clk 0:00:10]} 36. Qxe6 {[%clk 0:00:10]}  Nxd3 {[%clk 0:00:10]} 37. Qxf5+ {[%clk 0:00:10]}  Kg8 {[%clk 0:00:09]} 38. Qxd3 {[%clk 0:00:11]}  Qe1+ {[%clk 0:00:09]} 39. Qf1 {[%clk 0:00:10]}  Qxf2+ {[%clk 0:00:10]} 40. Qxf2 {[%clk 0:00:10]} 1-0


[Site "https://www.chess.com"]

[Event "Titled Tuesday Blitz March 29 Early 2022"]
[White "Paravyan, David"]
[Black "FGHSMN"]
[WhiteFideId "4194985"]
[WhiteElo "2569"]
[BlackElo "2768"]
[Result "1-0"]
[Round "06"]
[TimeControl "180+1"]
[Date "2022.03.29"]
[WhiteClock "0:00:13"]
[BlackClock "0:00:06"]

1. e4 {[%clk 0:02:58]}  c5 {[%clk 0:02:58]} 2. Nf3 {[%clk 0:02:58]}  e6 {[%clk 0:02:58]} 3. d4 {[%clk 0:02:58]}  cxd4 {[%clk 0:02:59]} 4. Nxd4 {[%clk 0:02:59]}  Nf6 {[%clk 0:02:59]} 5. Nc3 {[%clk 0:02:59]}  Nc6 {[%clk 0:03:00]} 6. Nxc6 {[%clk 0:02:48]}  bxc6 {[%clk 0:03:00]} 7. e5 {[%clk 0:02:49]}  Nd5 {[%clk 0:02:59]} 8. Ne4 {[%clk 0:02:49]}  Qc7 {[%clk 0:03:00]} 9. f4 {[%clk 0:02:48]}  Qb6 {[%clk 0:03:00]} 10. a3 {[%clk 0:02:48]}  Ba6 {[%clk 0:02:23]} 11. Bxa6 {[%clk 0:02:39]}  Qxa6 {[%clk 0:02:24]} 12. Qe2 {[%clk 0:02:40]}  Qxe2+ {[%clk 0:02:11]} 13. Kxe2 {[%clk 0:02:41]}  f5 {[%clk 0:02:12]} 14. Nf2 {[%clk 0:02:38]}  d6 {[%clk 0:02:04]} 15. Nd3 {[%clk 0:02:36]}  dxe5 {[%clk 0:02:00]} 16. Nxe5 {[%clk 0:02:36]}  Bd6 {[%clk 0:02:00]} 17. Nd3 {[%clk 0:02:30]}  Kf7 {[%clk 0:01:53]} 18. Kf3 {[%clk 0:02:28]}  Rhe8 {[%clk 0:01:52]} 19. b3 {[%clk 0:02:16]}  e5 {[%clk 0:01:47]} 20. fxe5 {[%clk 0:02:14]}  Bxe5 {[%clk 0:01:48]} 21. Nxe5+ {[%clk 0:02:13]}  Rxe5 {[%clk 0:01:48]} 22. Bd2 {[%clk 0:02:13]}  Rae8 {[%clk 0:01:42]} 23. Rhe1 {[%clk 0:02:08]}  Re4 {[%clk 0:01:42]} 24. Rxe4 {[%clk 0:01:49]}  fxe4+ {[%clk 0:01:39]} 25. Ke2 {[%clk 0:01:49]}  e3 {[%clk 0:01:32]} 26. Rf1+ {[%clk 0:01:49]}  Kg6 {[%clk 0:01:30]} 27. Be1 {[%clk 0:01:48]}  Re4 {[%clk 0:00:56]} 28. g3 {[%clk 0:01:46]}  c5 {[%clk 0:00:44]} 29. c4 {[%clk 0:01:20]}  Ne7 {[%clk 0:00:42]} 30. Rf4 {[%clk 0:01:11]}  Re6 {[%clk 0:00:33]} 31. g4 {[%clk 0:00:57]}  Nc6 {[%clk 0:00:32]} 32. Bc3 {[%clk 0:00:57]}  Kg5 {[%clk 0:00:30]} 33. Rf5+ {[%clk 0:00:46]}  Kxg4 {[%clk 0:00:31]} 34. Rxc5 {[%clk 0:00:46]}  Ne7 {[%clk 0:00:28]} 35. Re5 {[%clk 0:00:39]}  Rxe5 {[%clk 0:00:20]} 36. Bxe5 {[%clk 0:00:39]}  Nf5 {[%clk 0:00:17]} 37. c5 {[%clk 0:00:37]}  g5 {[%clk 0:00:17]} 38. b4 {[%clk 0:00:33]}  Ne7 {[%clk 0:00:16]} 39. Kxe3 {[%clk 0:00:33]}  Kf5 {[%clk 0:00:16]} 40. Bd6 {[%clk 0:00:32]}  Nd5+ {[%clk 0:00:14]} 41. Kd4 {[%clk 0:00:32]}  Ke6 {[%clk 0:00:15]} 42. b5 {[%clk 0:00:31]}  g4 {[%clk 0:00:14]} 43. Bb8 {[%clk 0:00:29]}  h5 {[%clk 0:00:10]} 44. Bxa7 {[%clk 0:00:29]}  h4 {[%clk 0:00:10]} 45. Bb8 {[%clk 0:00:24]}  Ne7 {[%clk 0:00:08]} 46. Ke4 {[%clk 0:00:19]}  Nf5 {[%clk 0:00:07]} 47. b6 {[%clk 0:00:16]}  g3 {[%clk 0:00:06]} 48. hxg3 {[%clk 0:00:13]}  hxg3 {[%clk 0:00:06]} 49. b7 {[%clk 0:00:13]} 1-0


[Site "https://www.chess.com"]

[Event "Titled Tuesday Blitz March 29 Early 2022"]
[White "Piesik, Piotr"]
[Black "Yoo, Christopher Woojin"]
[WhiteFideId "1136194"]
[BlackFideId "30909694"]
[WhiteElo "2190"]
[BlackElo "2105"]
[Result "1-0"]
[Round "06"]
[TimeControl "180+1"]
[Date "2022.03.29"]
[WhiteClock "0:01:17"]
[BlackClock "0:00:02"]

1. Nf3 {[%clk 0:03:00]}  Nf6 {[%clk 0:02:57]} 2. g3 {[%clk 0:03:01]}  d5 {[%clk 0:02:57]} 3. Bg2 {[%clk 0:03:01]}  e6 {[%clk 0:02:58]} 4. O-O {[%clk 0:03:01]}  Be7 {[%clk 0:02:58]} 5. d3 {[%clk 0:03:01]}  O-O {[%clk 0:02:59]} 6. Nbd2 {[%clk 0:03:00]}  c5 {[%clk 0:02:59]} 7. e4 {[%clk 0:02:59]}  Nc6 {[%clk 0:03:00]} 8. c3 {[%clk 0:02:59]}  b5 {[%clk 0:02:59]} 9. Qe2 {[%clk 0:02:53]}  Qc7 {[%clk 0:02:58]} 10. e5 {[%clk 0:02:53]}  Nd7 {[%clk 0:02:58]} 11. Re1 {[%clk 0:02:54]}  Bb7 {[%clk 0:02:56]} 12. h4 {[%clk 0:02:54]}  Rfc8 {[%clk 0:02:52]} 13. Nf1 {[%clk 0:02:52]}  d4 {[%clk 0:02:46]} 14. h5 {[%clk 0:02:51]}  h6 {[%clk 0:02:45]} 15. cxd4 {[%clk 0:02:47]}  cxd4 {[%clk 0:02:29]} 16. Bf4 {[%clk 0:02:42]}  Qb6 {[%clk 0:02:03]} 17. g4 {[%clk 0:02:37]}  Nb4 {[%clk 0:02:00]} 18. Rec1 {[%clk 0:02:30]}  Rxc1 {[%clk 0:01:57]} 19. Rxc1 {[%clk 0:02:30]}  Nxa2 {[%clk 0:01:57]} 20. Rd1 {[%clk 0:02:26]}  Rc8 {[%clk 0:01:56]} 21. g5 {[%clk 0:02:25]}  Bxf3 {[%clk 0:01:53]} 22. Qxf3 {[%clk 0:02:21]}  Bxg5 {[%clk 0:01:53]} 23. Bxg5 {[%clk 0:02:20]}  hxg5 {[%clk 0:01:54]} 24. Qg3 {[%clk 0:02:16]}  Qd8 {[%clk 0:01:54]} 25. Nd2 {[%clk 0:02:15]}  Rc1 {[%clk 0:01:49]} 26. Bf3 {[%clk 0:02:10]}  Nc5 {[%clk 0:01:39]} 27. Be2 {[%clk 0:01:46]}  Rxd1+ {[%clk 0:01:18]} 28. Bxd1 {[%clk 0:01:47]}  Nc1 {[%clk 0:01:18]} 29. Nf3 {[%clk 0:01:43]}  N1xd3 {[%clk 0:01:10]} 30. Nxg5 {[%clk 0:01:42]}  f6 {[%clk 0:00:32]} 31. Nxe6 {[%clk 0:01:33]}  Nxe6 {[%clk 0:00:30]} 32. Qxd3 {[%clk 0:01:33]}  fxe5 {[%clk 0:00:12]} 33. Bb3 {[%clk 0:01:32]}  Qf6 {[%clk 0:00:04]} 34. Qg6 {[%clk 0:01:27]}  Qxg6+ {[%clk 0:00:04]} 35. hxg6 {[%clk 0:01:28]}  Kf8 {[%clk 0:00:02]} 36. Bxe6 {[%clk 0:01:28]}  Ke7 {[%clk 0:00:02]} 37. Bf5 {[%clk 0:01:25]}  a5 {[%clk 0:00:02]} 38. Bd3 {[%clk 0:01:23]}  b4 {[%clk 0:00:02]} 39. b3 {[%clk 0:01:24]}  Kf6 {[%clk 0:00:02]} 40. Kg2 {[%clk 0:01:22]}  e4 {[%clk 0:00:01]} 41. Bxe4 {[%clk 0:01:21]}  Ke5 {[%clk 0:00:02]} 42. Kf3 {[%clk 0:01:20]}  d3 {[%clk 0:00:02]} 43. Ke3 {[%clk 0:01:17]}  d2 {[%clk 0:00:02]} 44. Bc2 {[%clk 0:01:17]} 1-0


[Site "https://www.chess.com"]

[Event "Titled Tuesday Blitz March 29 Early 2022"]
[White "Posthuma, Joshua"]
[Black "Aravindh, Chithambaram VR."]
[WhiteFideId "2096889"]
[BlackFideId "5072786"]
[WhiteElo "2176"]
[BlackElo "2561"]
[Result "0-1"]
[Round "06"]
[TimeControl "180+1"]
[Date "2022.03.29"]
[WhiteClock "0:00:01"]
[BlackClock "0:00:21"]

1. d4 {[%clk 0:03:00]}  g6 {[%clk 0:03:00]} 2. c4 {[%clk 0:03:00]}  Bg7 {[%clk 0:03:00]} 3. e4 {[%clk 0:03:01]}  c5 {[%clk 0:03:00]} 4. d5 {[%clk 0:02:53]}  d6 {[%clk 0:02:59]} 5. Bd3 {[%clk 0:02:49]}  Nf6 {[%clk 0:02:56]} 6. Nc3 {[%clk 0:02:49]}  O-O {[%clk 0:02:55]} 7. h3 {[%clk 0:02:49]}  e6 {[%clk 0:02:53]} 8. Nf3 {[%clk 0:02:49]}  exd5 {[%clk 0:02:53]} 9. cxd5 {[%clk 0:02:50]}  b5 {[%clk 0:02:49]} 10. Nxb5 {[%clk 0:02:45]}  Nxe4 {[%clk 0:02:43]} 11. O-O {[%clk 0:02:45]}  Ba6 {[%clk 0:02:31]} 12. Qa4 {[%clk 0:02:24]}  Nf6 {[%clk 0:02:27]} 13. Rd1 {[%clk 0:02:00]}  Nxd5 {[%clk 0:02:09]} 14. Be4 {[%clk 0:01:36]}  Nb6 {[%clk 0:02:08]} 15. Qa5 {[%clk 0:01:32]}  d5 {[%clk 0:02:03]} 16. Bf4 {[%clk 0:01:16]}  Qc8 {[%clk 0:01:05]} 17. Bxd5 {[%clk 0:00:29]}  Nxd5 {[%clk 0:01:04]} 18. Rxd5 {[%clk 0:00:30]}  Nc6 {[%clk 0:01:05]} 19. Qa4 {[%clk 0:00:28]}  Nb4 {[%clk 0:01:03]} 20. Rd2 {[%clk 0:00:24]}  Qe8 {[%clk 0:00:46]} 21. Nc3 {[%clk 0:00:22]}  Qxa4 {[%clk 0:00:44]} 22. Nxa4 {[%clk 0:00:23]}  Nd3 {[%clk 0:00:43]} 23. Bd6 {[%clk 0:00:18]}  Rfc8 {[%clk 0:00:42]} 24. Rad1 {[%clk 0:00:14]}  c4 {[%clk 0:00:40]} 25. b3 {[%clk 0:00:11]}  c3 {[%clk 0:00:37]} 26. Rc2 {[%clk 0:00:06]}  Nb2 {[%clk 0:00:29]} 27. Rdc1 {[%clk 0:00:05]}  Nxa4 {[%clk 0:00:29]} 28. bxa4 {[%clk 0:00:06]}  Bd3 {[%clk 0:00:29]} 29. Be5 {[%clk 0:00:02]}  Bxe5 {[%clk 0:00:27]} 30. Nxe5 {[%clk 0:00:03]}  Bxc2 {[%clk 0:00:27]} 31. Rxc2 {[%clk 0:00:04]}  Rab8 {[%clk 0:00:26]} 32. Nd3 {[%clk 0:00:04]}  Rb1+ {[%clk 0:00:22]} 33. Kh2 {[%clk 0:00:02]}  Rd1 {[%clk 0:00:23]} 34. Nb4 {[%clk 0:00:01]}  a5 {[%clk 0:00:21]} 0-1


[Site "https://www.chess.com"]

[Event "Titled Tuesday Blitz March 29 Early 2022"]
[White "Prohorov, Olexandr"]
[Black "Pajeken, Jakob Leon"]
[WhiteFideId "14105578"]
[BlackFideId "12942839"]
[WhiteElo "1993"]
[BlackElo "2351"]
[Result "0-1"]
[Round "06"]
[TimeControl "180+1"]
[Date "2022.03.30"]
[WhiteClock "0:00:04"]
[BlackClock "0:01:03"]

1. e4 {[%clk 0:03:00]}  e5 {[%clk 0:02:55]} 2. Nf3 {[%clk 0:03:00]}  Nc6 {[%clk 0:02:56]} 3. Nc3 {[%clk 0:02:56]}  Nf6 {[%clk 0:02:56]} 4. Bc4 {[%clk 0:02:56]}  Nxe4 {[%clk 0:02:56]} 5. Nxe4 {[%clk 0:02:51]}  d5 {[%clk 0:02:55]} 6. Bd3 {[%clk 0:02:37]}  dxe4 {[%clk 0:02:54]} 7. Bxe4 {[%clk 0:02:38]}  Bd6 {[%clk 0:02:51]} 8. O-O {[%clk 0:02:38]}  O-O {[%clk 0:02:50]} 9. d3 {[%clk 0:02:34]}  Ne7 {[%clk 0:02:49]} 10. Nd2 {[%clk 0:02:28]}  f5 {[%clk 0:02:45]} 11. Bf3 {[%clk 0:02:28]}  Ng6 {[%clk 0:02:46]} 12. Nc4 {[%clk 0:02:25]}  Qf6 {[%clk 0:02:39]} 13. Re1 {[%clk 0:02:13]}  Rb8 {[%clk 0:02:29]} 14. Nxd6 {[%clk 0:02:02]}  cxd6 {[%clk 0:02:29]} 15. Bd5+ {[%clk 0:02:02]}  Be6 {[%clk 0:02:28]} 16. Bxe6+ {[%clk 0:02:01]}  Qxe6 {[%clk 0:02:29]} 17. f3 {[%clk 0:01:46]}  f4 {[%clk 0:02:23]} 18. d4 {[%clk 0:01:47]}  Rbc8 {[%clk 0:02:18]} 19. dxe5 {[%clk 0:01:34]}  dxe5 {[%clk 0:02:18]} 20. c3 {[%clk 0:01:35]}  Rfd8 {[%clk 0:02:17]} 21. Qb3 {[%clk 0:01:31]}  Qxb3 {[%clk 0:02:15]} 22. axb3 {[%clk 0:01:23]}  a6 {[%clk 0:02:16]} 23. b4 {[%clk 0:01:14]}  Rd3 {[%clk 0:02:15]} 24. Kf2 {[%clk 0:01:11]}  Rcd8 {[%clk 0:02:14]} 25. Ra5 {[%clk 0:01:08]}  Kf7 {[%clk 0:02:12]} 26. Ke2 {[%clk 0:01:04]}  Kf6 {[%clk 0:02:09]} 27. g3 {[%clk 0:00:59]}  fxg3 {[%clk 0:02:02]} 28. hxg3 {[%clk 0:00:58]}  h5 {[%clk 0:02:02]} 29. b5 {[%clk 0:00:55]}  h4 {[%clk 0:01:52]} 30. gxh4 {[%clk 0:00:55]}  Nf4+ {[%clk 0:01:42]} 31. Bxf4 {[%clk 0:00:32]}  exf4 {[%clk 0:01:43]} 32. bxa6 {[%clk 0:00:28]}  Re3+ {[%clk 0:01:43]} 33. Kf1 {[%clk 0:00:14]}  Rxf3+ {[%clk 0:01:43]} 34. Ke2 {[%clk 0:00:09]}  Re3+ {[%clk 0:01:29]} 35. Kf1 {[%clk 0:00:09]}  bxa6 {[%clk 0:01:05]} 36. Rxa6+ {[%clk 0:00:07]}  Kf5 {[%clk 0:01:05]} 37. Rxe3 {[%clk 0:00:06]}  fxe3 {[%clk 0:01:06]} 38. Ke2 {[%clk 0:00:06]}  Rd2+ {[%clk 0:01:06]} 39. Kxe3 {[%clk 0:00:07]}  Rxb2 {[%clk 0:01:07]} 40. Ra7 {[%clk 0:00:06]}  Rh2 {[%clk 0:01:04]} 41. Rxg7 {[%clk 0:00:05]}  Rxh4 {[%clk 0:01:04]} 42. Kd3 {[%clk 0:00:06]}  Ke5 {[%clk 0:01:05]} 43. Rg2 {[%clk 0:00:04]}  Kd5 {[%clk 0:01:04]} 44. Rg5+ {[%clk 0:00:04]}  Kd6 {[%clk 0:01:05]} 45. Kc2 {[%clk 0:00:05]}  Kc7 {[%clk 0:01:04]} 46. Kb3 {[%clk 0:00:05]}  Rh6 {[%clk 0:01:04]} 47. c4 {[%clk 0:00:05]}  Rf6 {[%clk 0:01:03]} 48. Kb4 {[%clk 0:00:06]}  Rh6 {[%clk 0:01:04]} 49. Kb5 {[%clk 0:00:06]}  Rf6 {[%clk 0:01:04]} 50. Rg7+ {[%clk 0:00:06]}  Kc8 {[%clk 0:01:02]} 51. Rh7 {[%clk 0:00:06]}  Rg6 {[%clk 0:01:01]} 52. Ra7 {[%clk 0:00:05]}  Rf6 {[%clk 0:01:02]} 53. Ra2 {[%clk 0:00:04]}  Rg6 {[%clk 0:01:02]} 54. c5 {[%clk 0:00:04]}  Rf6 {[%clk 0:01:03]} 55. Rd2 {[%clk 0:00:04]}  Rg6 {[%clk 0:01:03]} 56. Rf2 {[%clk 0:00:03]}  Rh6 {[%clk 0:01:03]} 57. Rh2 {[%clk 0:00:04]}  Rxh2 {[%clk 0:01:03]} 0-1


[Site "https://www.chess.com"]

[Event "Titled Tuesday Blitz March 29 Early 2022"]
[White "Przybylski, Wojciech"]
[Black "Polanco Nunez, Yoel Estarling"]
[WhiteFideId "1117599"]
[BlackFideId "6401783"]
[WhiteElo "2133"]
[BlackElo "2132"]
[Result "0-1"]
[Round "06"]
[TimeControl "180+1"]
[Date "2022.03.30"]
[WhiteClock "0:00:03"]
[BlackClock "0:00:46"]

1. d4 {[%clk 0:02:59]}  Nf6 {[%clk 0:02:59]} 2. Nf3 {[%clk 0:02:58]}  d5 {[%clk 0:02:59]} 3. Bf4 {[%clk 0:02:56]}  c5 {[%clk 0:02:59]} 4. e3 {[%clk 0:02:55]}  Nc6 {[%clk 0:02:59]} 5. c3 {[%clk 0:02:55]}  Qb6 {[%clk 0:02:55]} 6. Qb3 {[%clk 0:02:54]}  c4 {[%clk 0:02:55]} 7. Qxb6 {[%clk 0:02:53]}  axb6 {[%clk 0:02:55]} 8. Nbd2 {[%clk 0:02:53]}  b5 {[%clk 0:02:55]} 9. Be2 {[%clk 0:02:46]}  e6 {[%clk 0:02:52]} 10. O-O {[%clk 0:02:45]}  b4 {[%clk 0:02:53]} 11. e4 {[%clk 0:02:41]}  bxc3 {[%clk 0:02:51]} 12. bxc3 {[%clk 0:02:40]}  Ba3 {[%clk 0:02:50]} 13. exd5 {[%clk 0:02:24]}  exd5 {[%clk 0:02:50]} 14. Rab1 {[%clk 0:02:23]}  O-O {[%clk 0:02:50]} 15. Ne5 {[%clk 0:02:22]}  Re8 {[%clk 0:02:48]} 16. Bf3 {[%clk 0:02:11]}  Ra6 {[%clk 0:02:30]} 17. Rb5 {[%clk 0:02:00]}  Rd8 {[%clk 0:02:24]} 18. h3 {[%clk 0:01:56]}  h6 {[%clk 0:02:24]} 19. Rfb1 {[%clk 0:01:55]}  Bf8 {[%clk 0:02:12]} 20. R5b2 {[%clk 0:01:24]}  Bf5 {[%clk 0:02:02]} 21. Re1 {[%clk 0:01:06]}  Na5 {[%clk 0:02:00]} 22. g4 {[%clk 0:00:48]}  Bh7 {[%clk 0:01:58]} 23. g5 {[%clk 0:00:47]}  hxg5 {[%clk 0:01:56]} 24. Bxg5 {[%clk 0:00:47]}  Ra7 {[%clk 0:01:29]} 25. Kg2 {[%clk 0:00:45]}  Nc6 {[%clk 0:01:28]} 26. Reb1 {[%clk 0:00:38]}  Bxb1 {[%clk 0:01:27]} 27. Nxb1 {[%clk 0:00:38]}  Ne7 {[%clk 0:01:20]} 28. Bxf6 {[%clk 0:00:35]}  gxf6 {[%clk 0:01:19]} 29. Ng4 {[%clk 0:00:36]}  Kg7 {[%clk 0:01:19]} 30. Ne3 {[%clk 0:00:35]}  Rda8 {[%clk 0:01:18]} 31. a3 {[%clk 0:00:34]}  Rd8 {[%clk 0:01:15]} 32. Rb5 {[%clk 0:00:32]}  Rd6 {[%clk 0:01:08]} 33. Nxd5 {[%clk 0:00:30]}  Nxd5 {[%clk 0:01:08]} 34. Bxd5 {[%clk 0:00:30]}  b6 {[%clk 0:01:05]} 35. Bxc4 {[%clk 0:00:29]}  Rc7 {[%clk 0:01:05]} 36. Bd3 {[%clk 0:00:29]}  Rdc6 {[%clk 0:01:05]} 37. a4 {[%clk 0:00:28]}  Re6 {[%clk 0:01:01]} 38. Rb3 {[%clk 0:00:25]}  Ra7 {[%clk 0:00:59]} 39. Bb5 {[%clk 0:00:24]}  Re1 {[%clk 0:00:57]} 40. Nd2 {[%clk 0:00:24]}  Rc7 {[%clk 0:00:56]} 41. Nc4 {[%clk 0:00:24]}  Rc1 {[%clk 0:00:53]} 42. Kf3 {[%clk 0:00:24]}  f5 {[%clk 0:00:51]} 43. Ke2 {[%clk 0:00:23]}  Kf6 {[%clk 0:00:50]} 44. Kf3 {[%clk 0:00:16]}  Bh6 {[%clk 0:00:50]} 45. h4 {[%clk 0:00:13]}  Rc2 {[%clk 0:00:50]} 46. Kg3 {[%clk 0:00:05]}  Bd2 {[%clk 0:00:47]} 47. Nxd2 {[%clk 0:00:04]}  Rxd2 {[%clk 0:00:48]} 48. d5 {[%clk 0:00:03]}  Rxd5 {[%clk 0:00:47]} 49. c4 {[%clk 0:00:02]}  Rd4 {[%clk 0:00:47]} 50. Re3 {[%clk 0:00:02]}  f4+ {[%clk 0:00:46]} 51. Kf3 {[%clk 0:00:03]}  fxe3 {[%clk 0:00:46]} 0-1


[Site "https://www.chess.com"]

[Event "Titled Tuesday Blitz March 29 Early 2022"]
[White "Rastbod, Ali"]
[Black "Golubev, Mikhail"]
[WhiteFideId "12567477"]
[BlackFideId "14100983"]
[WhiteElo "2200"]
[BlackElo "2374"]
[Result "1-0"]
[Round "06"]
[TimeControl "180+1"]
[Date "2022.03.30"]
[WhiteClock "0:00:26"]
[BlackClock "0:00:01"]

1. e4 {[%clk 0:03:00]}  c5 {[%clk 0:02:58]} 2. Nf3 {[%clk 0:03:00]}  d6 {[%clk 0:02:58]} 3. Bb5+ {[%clk 0:02:55]}  Nc6 {[%clk 0:02:56]} 4. O-O {[%clk 0:02:55]}  Bd7 {[%clk 0:02:53]} 5. Re1 {[%clk 0:02:54]}  Nf6 {[%clk 0:02:53]} 6. c3 {[%clk 0:02:51]}  a6 {[%clk 0:02:53]} 7. Bf1 {[%clk 0:02:50]}  Bg4 {[%clk 0:02:52]} 8. h3 {[%clk 0:02:50]}  Bxf3 {[%clk 0:02:50]} 9. Qxf3 {[%clk 0:02:51]}  g6 {[%clk 0:02:50]} 10. d3 {[%clk 0:02:52]}  Bg7 {[%clk 0:02:51]} 11. Qd1 {[%clk 0:02:51]}  O-O {[%clk 0:02:49]} 12. Be3 {[%clk 0:02:47]}  Nd7 {[%clk 0:02:44]} 13. Nd2 {[%clk 0:02:46]}  b5 {[%clk 0:02:43]} 14. f4 {[%clk 0:02:31]}  b4 {[%clk 0:02:40]} 15. Qa4 {[%clk 0:02:25]}  Qc7 {[%clk 0:02:17]} 16. Rac1 {[%clk 0:02:19]}  Nb6 {[%clk 0:01:56]} 17. Qc2 {[%clk 0:02:14]}  Qd7 {[%clk 0:01:45]} 18. Be2 {[%clk 0:02:08]}  a5 {[%clk 0:01:43]} 19. Nf3 {[%clk 0:01:57]}  Rfc8 {[%clk 0:01:37]} 20. Qd2 {[%clk 0:01:54]}  a4 {[%clk 0:01:36]} 21. d4 {[%clk 0:01:45]}  a3 {[%clk 0:01:31]} 22. Bb5 {[%clk 0:01:22]}  axb2 {[%clk 0:01:27]} 23. Qxb2 {[%clk 0:01:20]}  Qa7 {[%clk 0:00:39]} 24. Bxc6 {[%clk 0:01:02]}  Rxc6 {[%clk 0:00:17]} 25. cxb4 {[%clk 0:01:01]}  cxd4 {[%clk 0:00:16]} 26. Rxc6 {[%clk 0:00:58]}  dxe3 {[%clk 0:00:16]} 27. Qe2 {[%clk 0:00:58]}  Qb7 {[%clk 0:00:11]} 28. Rec1 {[%clk 0:00:56]}  f5 {[%clk 0:00:05]} 29. Qb5 {[%clk 0:00:53]}  e2 {[%clk 0:00:03]} 30. Qxb6 {[%clk 0:00:45]}  Qxb6+ {[%clk 0:00:03]} 31. Rxb6 {[%clk 0:00:46]}  fxe4 {[%clk 0:00:02]} 32. Kf2 {[%clk 0:00:37]}  exf3 {[%clk 0:00:03]} 33. Kxf3 {[%clk 0:00:38]}  Rxa2 {[%clk 0:00:01]} 34. Re1 {[%clk 0:00:35]}  Ra3+ {[%clk 0:00:01]} 35. Kxe2 {[%clk 0:00:34]}  Kf7 {[%clk 0:00:01]} 36. Rb7 {[%clk 0:00:33]}  Bd4 {[%clk 0:00:01]} 37. b5 {[%clk 0:00:26]} 1-0


[Site "https://www.chess.com"]